fUST/lending_fUST_20240613
["ID","MTS","AMOUNT","RATE_DAILY","PERIOD"]
[329281634,1718213459842,-151.0,0.00019178,2]
[329281635,1718213459853,-151.0,0.00019178,2]
[329281636,1718213459865,-280.453782,0.00019178,2]
[329281637,1718213459876,-255.147834,0.00019178,2]
[329281638,1718213459887,-255.147834,0.00019178,2]
[329281639,1718213459897,-255.147834,0.00019178,2]
[329281640,1718213459910,-255.147834,0.00019178,2]
[329281641,1718213459920,-151.0,0.00019178,2]
[329281642,1718213459930,-151.0,0.00019178,2]
[329281643,1718213459940,-151.0,0.00019178,2]
[329281644,1718213459950,-500.0,0.00019178,2]
[329281645,1718213459960,-788.19,0.00019178,2]
[329281646,1718213459970,-151.0,0.00019178,2]
[329281647,1718213459983,-151.0,0.00019178,2]
[329281648,1718213459997,-151.0,0.00019178,2]
[329281649,1718213460009,-500.0,0.00019178,2]
[329281650,1718213460034,-698.9,0.00019178,2]
[329281651,1718213460063,-266.272017,0.00019178,2]
[329281652,1718213460080,-266.272017,0.00019178,2]
[329281653,1718213460094,-266.272017,0.00019178,2]
[329281654,1718213460109,-266.272017,0.00019178,2]
[329281655,1718213460120,-266.272017,0.00019178,2]
[329281656,1718213460141,-266.272017,0.00019178,2]
[329281657,1718213460154,-500.0,0.00019178,2]
[329281658,1718213460169,-785.12,0.00019178,2]
[329281659,1718213460182,-213.35945,0.00019178,2]
[329281660,1718213460197,-213.35945,0.00019178,2]
[329281661,1718213460208,-213.35945,0.00019178,2]
[329281662,1718213460226,-213.35945,0.00019178,2]
[329281663,1718213460237,-213.35945,0.00019178,2]
[329281664,1718213460251,-213.35945,0.00019178,2]
[329281665,1718213460264,-473.248085,0.00019178,2]
[329281666,1718213460277,-473.248085,0.00019178,2]
[329281667,1718213460296,-500.0,0.00019178,2]
[329281668,1718213460315,-473.248085,0.00019178,2]
[329281669,1718213460328,-473.248085,0.00019178,2]
[329281670,1718213460351,-151.0,0.00019178,2]
[329281671,1718213460362,-247.08401,0.00019178,2]
[329281672,1718213460386,-500.0,0.00019178,2]
[329281673,1718213460410,-500.0,0.00019178,4]
[329281674,1718213460445,-500.0,0.00019178,2]
[329281675,1718213460470,-843.74,0.00019178,2]
[329281676,1718213460490,-1141.32,0.00019178,2]
[329281677,1718213460516,-438.667853,0.00019178,2]
[329281678,1718213460536,-438.667853,0.00019178,2]
[329281679,1718213460558,-612.88,0.00019178,2]
[329281680,1718213460576,-438.667853,0.00019178,2]
[329281681,1718213460588,-438.667853,0.00019178,2]
[329281682,1718213460605,-1594.96,0.00019178,2]
[329281683,1718213460626,-500.0,0.00019178,2]
[329281684,1718213460636,-816.27,0.00019178,2]
[329281685,1718213460653,-1013.29,0.00019178,2]
[329281686,1718213460677,-162.784742,0.00019178,2]
[329281687,1718213460699,-162.784742,0.00019178,2]
[329281688,1718213460711,-500.0,0.00019178,2]
[329281689,1718213460727,-162.784742,0.00019178,2]
[329281690,1718213460741,-162.784742,0.00019178,2]
[329281691,1718213460763,-270.0,0.00019178,2]
[329281692,1718213460785,-270.0,0.00019178,2]
[329281693,1718213460796,-270.0,0.00019178,2]
[329281694,1718213460806,-270.0,0.00019178,2]
[329281695,1718213460825,-270.0,0.00019178,2]
[329281696,1718213460841,-270.0,0.00019178,2]
[329281697,1718213460855,-5276.1,0.00019178,2]
[329281698,1718213460868,-10317.11,0.00019178,2]
[329281699,1718213460879,-518.77,0.00019178,2]
[329281700,1718213460890,-2023.36,0.00019178,2]
[329281701,1718213460902,-379.727443,0.00019178,2]
[329281702,1718213460915,-379.727443,0.00019178,2]
[329281703,1718213460938,-379.727443,0.00019178,2]
[329281704,1718213460948,-379.727443,0.00019178,2]
[329281705,1718213460967,-379.727443,0.00019178,2]
[329281706,1718213460985,-379.727443,0.00019178,2]
[329281707,1718213461003,-3909.97,0.00019178,2]
[329281708,1718213461016,-151.0,0.00019178,2]
[329281709,1718213461040,-151.0,0.00019178,2]
[329281710,1718213461054,-151.0,0.00019178,2]
[329281711,1718213461064,-885.64,0.00019178,2]
[329281712,1718213461078,-543.96,0.00019178,2]
[329281713,1718213461095,-661.55,0.00019178,2]
[329281714,1718213461109,-203.447223,0.00019178,2]
[329281715,1718213461119,-203.447223,0.00019178,2]
[329281716,1718213461129,-203.447223,0.00019178,2]
[329281717,1718213461140,-203.447223,0.00019178,2]
[329281718,1718213461151,-203.447223,0.00019178,2]
[329281719,1718213461162,-203.447223,0.00019178,2]
[329281720,1718213461172,-1169.56,0.00019178,2]
[329281721,1718213461182,-502.93,0.00019178,2]
[329281722,1718213461192,-8110.14,0.00019178,2]
[329281723,1718213461202,-151.0,0.00019178,2]
[329281724,1718213461213,-151.0,0.00019178,2]
[329281725,1718213461224,-151.0,0.00019178,2]
[329281726,1718213461235,-2126.41,0.00019178,2]
[329281727,1718213461248,-515.128583,0.00019178,2]
[329281728,1718213461259,-515.128583,0.00019178,2]
[329281729,1718213461270,-515.128583,0.00019178,2]
[329281730,1718213461283,-500.0,0.00019178,2]
[329281731,1718213461299,-515.128583,0.00019178,2]
[329281732,1718213461311,-515.128583,0.00019178,2]
[329281733,1718213461323,-515.128583,0.00019178,2]
[329281734,1718213461343,-1587.25,0.00019178,2]
[329281735,1718213461361,-829.0,0.00019178,2]
[329281736,1718213461371,-582.53,0.00019178,2]
[329281737,1718213461382,-280.046525,0.00019178,2]
[329281738,1718213461392,-500.0,0.00019178,2]
[329281739,1718213461402,-3349.27,0.00019178,2]
[329281740,1718213461416,-151.0,0.00019178,2]
[329281741,1718213461428,-151.0,0.00019178,2]
[329281742,1718213461439,-151.0,0.00019178,2]
[329281743,1718213461450,-566.91,0.00019178,2]
[329281744,1718213461461,-3051.67,0.00019178,2]
[329281745,1718213461471,-206.191828,0.00019178,2]
[329281746,1718213461481,-165.151759,0.00019178,2]
[329281747,1718213461491,-473.516057,0.00019185,2]
[329281748,1718213461501,-431.454293,0.00019185,2]
[329281749,1718213461511,-507.812431,0.00019185,2]
[329281750,1718213461521,-431.454293,0.00019185,2]
[329281751,1718213461532,-507.812432,0.00019185,2]
[329281752,1718213461543,-431.454293,0.00019185,2]
[329281753,1718213461555,-277.948798,0.00019185,2]
[329281754,1718213461566,-331.703528,0.00019185,2]
[329281755,1718213461577,-153.505495,0.00019185,2]
[329281756,1718213461587,-176.108903,0.00019185,2]
[329281757,1718213461598,-345.163434,0.00019185,2]
[329281758,1718213461609,-399.39067,0.00019185,2]
[329281759,1718213461620,-169.270811,0.00019185,2]
[329281760,1718213461631,-172.581718,0.00019185,2]
[329281761,1718213461643,-297.828184,0.00019185,2]
[329281762,1718213461654,-172.581717,0.00019185,2]
[329281763,1718213461668,-345.163434,0.00019185,2]
[329281764,1718213461684,-399.39067,0.00019185,2]
[329281765,1718213461696,-399.39067,0.00019185,2]
[329281766,1718213461708,-345.163435,0.00019185,2]
[329281767,1718213461719,-299.200039,0.00019185,2]
[329281768,1718213461730,-276.130747,0.00019185,2]
[329281769,1718213461741,-276.130748,0.00019185,2]
[329281770,1718213461754,-333.054201,0.00019185,2]
[329281771,1718213461766,-158.06356,0.00019185,2]
[329281772,1718213461787,-184.087165,0.00019185,2]
[329281773,1718213461800,-933.463318,0.00019185,2]
[329281774,1718213461811,-818.037339,0.00019185,2]
[329281775,1718213461825,-473.248085,0.00019185,2]
[329281776,1718213461842,-473.248085,0.00019185,2]
[329281777,1718213461866,-438.667853,0.00019185,2]
[329281778,1718213461877,-438.667853,0.00019185,2]
[329281779,1718213461890,-162.784742,0.00019185,2]
[329281780,1718213461901,-162.784742,0.00019185,2]
[329281781,1718213461913,-600.0,0.000192,2]
[329281782,1718213462032,-306.0,0.00019333,2]
[329281783,1718213462052,-153.0,0.00019359,2]
[329281784,1718213462063,-200.424903,0.00019361,2]
[329281785,1718213462073,-156.074489,0.00019361,2]
[329281786,1718213462084,-400.849802,0.00019361,2]
[329281787,1718213462096,-468.223464,0.00019361,2]
[329281788,1718213462107,-186.692663,0.00019361,2]
[329281789,1718213462117,-163.607468,0.00019361,2]
[329281790,1718213462127,-323.947388,0.00019361,2]
[329281791,1718213462136,-373.982049,0.00019361,2]
[329281792,1718213462147,-635.9,0.0001937,2]
[329281793,1718213462161,-151.0,0.0001937,2]
[329281794,1718213462173,-999.0,0.00019398,2]
[329281795,1718213462183,-600.0,0.000194,2]
[329281796,1718213462193,-309.81409605,0.00019451,2]
[329281797,1718213462205,-500.0,0.00019452,2]
[329281798,1718213462216,-255.147834,0.00019452,2]
[329281799,1718213462227,-255.147834,0.00019452,2]
[329281800,1718213462242,-500.0,0.00019452,2]
[329281801,1718213462255,-788.19,0.00019452,2]
[329281802,1718213462269,-500.0,0.00019452,2]
[329281803,1718213462289,-698.9,0.00019452,2]
[329281804,1718213462302,-500.0,0.00019452,2]
[329281805,1718213462318,-785.12,0.00019452,2]
[329281806,1718213462333,-500.0,0.00019452,2]
[329281807,1718213462362,-500.0,0.00019452,2]
[329281808,1718213462373,-500.0,0.00019452,4]
[329281809,1718213462386,-500.0,0.00019452,2]
[329281810,1718213462400,-843.74,0.00019452,2]
[329281811,1718213462417,-1141.32,0.00019452,2]
[329281812,1718213462429,-612.88,0.00019452,2]
[329281813,1718213462443,-1594.96,0.00019452,2]
[329281814,1718213462457,-500.0,0.00019452,2]
[329281815,1718213462472,-816.27,0.00019452,2]
[329281816,1718213462484,-1013.29,0.00019452,2]
[329281817,1718213462495,-601.38818274,0.00019452,2]
[329281818,1718213462509,-5276.1,0.00019452,2]
[329281819,1718213462520,-10317.11,0.00019452,2]
[329281820,1718213462533,-518.77,0.00019452,2]
[329281821,1718213462544,-2023.36,0.00019452,2]
[329281822,1718213462557,-3909.97,0.00019452,2]
[329281823,1718213462570,-885.64,0.00019452,2]
[329281824,1718213462584,-543.96,0.00019452,2]
[329281825,1718213462597,-661.55,0.00019452,2]
[329281826,1718213462610,-203.447223,0.00019452,2]
[329281827,1718213462621,-203.447223,0.00019452,2]
[329281828,1718213462634,-1169.56,0.00019452,2]
[329281829,1718213462646,-502.93,0.00019452,2]
[329281830,1718213462666,-8110.14,0.00019452,2]
[329281831,1718213462682,-151.0,0.00019452,2]
[329281832,1718213462696,-2126.41,0.00019452,2]
[329281833,1718213462713,-515.128583,0.00019452,2]
[329281834,1718213462740,-500.0,0.00019452,2]
[329281835,1718213462754,-515.128583,0.00019452,2]
[329281836,1718213462770,-1587.25,0.00019452,2]
[329281837,1718213462784,-829.0,0.00019452,2]
[329281838,1718213462797,-582.53,0.00019452,2]
[329281839,1718213462810,-500.0,0.00019452,2]
[329281840,1718213462822,-3349.27,0.00019452,2]
[329281841,1718213462835,-151.0,0.00019452,2]
[329281842,1718213462850,-566.91,0.00019452,2]
[329281843,1718213462865,-3051.67,0.00019452,2]
[329281844,1718213462876,-155.0,0.0001951,2]
[329281845,1718213462889,-270.0,0.0001951,2]
[329281846,1718213462901,-270.0,0.0001951,2]
[329281847,1718213462915,-379.727443,0.0001951,2]
[329281848,1718213462926,-379.727443,0.0001951,2]
[329281849,1718213462937,-220.610392,0.0001951,2]
[329281850,1718213462949,-635.9,0.0001958,2]
[329281851,1718213462962,-151.0,0.0001958,2]
[329281852,1718213462976,-600.0,0.000196,2]
[329281853,1718213462988,-320.0,0.0001965,2]
[329281854,1718213463001,-2000.0,0.00019675,2]
[329281855,1718213463018,-153.0,0.00019707,2]
[329281856,1718213463035,-2000.0,0.00019717,2]
[329281857,1718213463047,-2000.0,0.00019726,2]
[329281858,1718213463058,-2000.0,0.00019726,2]
[329281859,1718213463072,-500.0,0.00019726,2]
[329281860,1718213463089,-255.147834,0.00019726,2]
[329281861,1718213463100,-255.147834,0.00019726,2]
[329281862,1718213463116,-272.765393,0.00019726,2]
[329281863,1718213463128,-500.0,0.00019726,2]
[329281864,1718213463139,-788.19,0.00019726,2]
[329281865,1718213463167,-151.0,0.00019726,2]
[329281866,1718213463182,-500.0,0.00019726,2]
[329281867,1718213463196,-698.9,0.00019726,2]
[329281868,1718213463207,-266.272017,0.00019726,2]
[329281869,1718213463218,-266.272017,0.00019726,2]
[329281870,1718213463230,-500.0,0.00019726,2]
[329281871,1718213463246,-785.12,0.00019726,2]
[329281872,1718213463258,-213.35945,0.00019726,2]
[329281873,1718213463269,-213.35945,0.00019726,2]
[329281874,1718213463281,-499.00173962,0.00019726,2]
[329281875,1718213463294,-473.248085,0.00019726,2]
[329281876,1718213463309,-473.248085,0.00019726,2]
[329281877,1718213463323,-500.0,0.00019726,2]
[329281878,1718213463342,-500.0,0.00019726,4]
[329281879,1718213463370,-500.0,0.00019726,2]
[329281880,1718213463383,-843.74,0.00019726,2]
[329281881,1718213463394,-1141.32,0.00019726,2]
[329281882,1718213463405,-438.667853,0.00019726,2]
[329281883,1718213463426,-612.88,0.00019726,2]
[329281884,1718213463442,-438.667853,0.00019726,2]
[329281885,1718213463455,-1594.96,0.00019726,2]
[329281886,1718213463469,-500.0,0.00019726,2]
[329281887,1718213463482,-816.27,0.00019726,2]
[329281888,1718213463495,-1013.29,0.00019726,2]
[329281889,1718213463509,-162.784742,0.00019726,2]
[329281890,1718213463521,-162.784742,0.00019726,2]
[329281891,1718213463533,-5276.1,0.00019726,2]
[329281892,1718213463544,-10317.11,0.00019726,2]
[329281893,1718213463555,-518.77,0.00019726,2]
[329281894,1718213463567,-2023.36,0.00019726,2]
[329281895,1718213463579,-3909.97,0.00019726,2]
[329281896,1718213463591,-885.64,0.00019726,2]
[329281897,1718213463602,-543.96,0.00019726,2]
[329281898,1718213463615,-661.55,0.00019726,2]
[329281899,1718213463632,-1169.56,0.00019726,2]
[329281900,1718213463645,-502.93,0.00019726,2]
[329281901,1718213463655,-8110.14,0.00019726,2]
[329281902,1718213463677,-151.0,0.00019726,2]
[329281903,1718213463692,-2126.41,0.00019726,2]
[329281904,1718213463707,-515.128583,0.00019726,2]
[329281905,1718213463719,-500.0,0.00019726,2]
[329281906,1718213463729,-515.128583,0.00019726,2]
[329281907,1718213463741,-1587.25,0.00019726,2]
[329281908,1718213463753,-829.0,0.00019726,2]
[329281909,1718213463765,-582.53,0.00019726,2]
[329281910,1718213463775,-3349.27,0.00019726,2]
[329281911,1718213463787,-500.0,0.00019726,2]
[329281912,1718213463799,-151.0,0.00019726,2]
[329281913,1718213463811,-566.91,0.00019726,2]
[329281914,1718213463822,-3051.67,0.00019726,2]
[329281915,1718213463833,-635.9,0.0001979,2]
[329281916,1718213463846,-151.0,0.0001979,2]
[329281917,1718213463858,-600.0,0.000198,2]
[329281918,1718213463869,-5397.37629216,0.00019888,2]
[329281919,1718213464025,-500.0,0.00017534,2]
[329281920,1718213464036,-378.42385116,0.00017808,2]
[329282017,1718213864433,1518.53802369,9.999e-05,2]
[329282018,1718213902457,263.67450645,9.999e-05,2]
[329282091,1718214574149,-595.30014019,0.00014999,2]
[329282132,1718214633683,-2068.83511765,0.00014999,2]
[329282133,1718214633794,-19.03156677,0.00014999,2]
[329282134,1718214633805,-3815.60968285,0.00015,2]
[329282135,1718214633816,-3000.0,0.0001541,2]
[329282136,1718214633827,-300.0,0.00016334,2]
[329282137,1718214633840,-300.0,0.00016335,2]
[329282138,1718214633850,-202.32617098,0.00016335,2]
[329282139,1718214633861,-973.02189718,0.00016336,2]
[329282140,1718214633872,-559.82546154,0.00016338,2]
[329282141,1718214633883,-7955.20544271,0.00016433,2]
[329282142,1718214633894,-10413.92845707,0.00016434,2]
[329282143,1718214633904,-27592.08482979,0.00016435,2]
[329282144,1718214633915,-295.76670435,0.00016436,2]
[329282145,1718214633925,-691.30254999,0.00016436,2]
[329282146,1718214633936,-155.04650155,0.00016436,2]
[329282147,1718214633947,-11090.69056168,0.00016436,2]
[329282148,1718214633958,-1877.30128471,0.00016436,2]
[329282149,1718214633968,-159.98692822,0.00016436,2]
[329282150,1718214633979,-1511.21913827,0.00016436,2]
[329282152,1718214633989,-1517.40791058,0.00016436,2]
[329282154,1718214634000,-1985.3218399,0.00016437,2]
[329282157,1718214634013,-2232.1334245,0.00016437,2]
[329282158,1718214634024,-500.0,0.00016438,2]
[329282159,1718214634034,-500.0,0.00016438,2]
[329282160,1718214634044,-500.0,0.00016438,2]
[329282161,1718214634054,-500.0,0.00016438,2]
[329282162,1718214634065,-500.0,0.00016438,2]
[329282163,1718214634075,-500.0,0.00016438,2]
[329282165,1718214634086,-500.0,0.00016438,2]
[329282167,1718214634096,-500.0,0.00016438,2]
[329282169,1718214634106,-500.0,0.00016438,2]
[329282170,1718214634116,-500.0,0.00016438,2]
[329282172,1718214634127,-500.0,0.00016438,2]
[329282174,1718214634137,-500.0,0.00016438,2]
[329282177,1718214634149,-500.0,0.00016438,2]
[329282179,1718214634161,-500.0,0.00016438,2]
[329282181,1718214634172,-500.0,0.00016438,2]
[329282183,1718214634182,-500.0,0.00016438,2]
[329282185,1718214634193,-500.0,0.00016438,2]
[329282187,1718214634203,-500.0,0.00016438,2]
[329282189,1718214634213,-500.0,0.00016438,2]
[329282191,1718214634225,-500.0,0.00016438,2]
[329282193,1718214634235,-500.0,0.00016438,2]
[329282195,1718214634247,-500.0,0.00016438,2]
[329282197,1718214634258,-500.0,0.00016438,2]
[329282199,1718214634268,-500.0,0.00016438,2]
[329282201,1718214634278,-500.0,0.00016438,2]
[329282203,1718214634288,-500.0,0.00016438,2]
[329282205,1718214634299,-500.0,0.00016438,2]
[329282207,1718214634309,-500.0,0.00016438,2]
[329282209,1718214634319,-500.0,0.00016438,2]
[329282211,1718214634330,-500.0,0.00016438,2]
[329282213,1718214634340,-500.0,0.00016438,2]
[329282215,1718214634351,-595.2624765,0.00016438,2]
[329282217,1718214634361,-500.0,0.00016438,2]
[329282219,1718214634372,-500.0,0.00016438,2]
[329282221,1718214634382,-500.0,0.00016438,2]
[329282223,1718214634393,-500.0,0.00016438,2]
[329282225,1718214634403,-500.0,0.00016438,2]
[329282227,1718214634414,-500.0,0.00016438,2]
[329282229,1718214634424,-500.0,0.00016438,2]
[329282231,1718214634435,-500.0,0.00016438,4]
[329282233,1718214634446,-500.0,0.00016438,2]
[329282235,1718214634456,-250.0,0.00016438,2]
[329282237,1718214634467,-500.0,0.00016438,2]
[329282239,1718214634477,-500.0,0.00016438,2]
[329282241,1718214634488,-500.0,0.00016438,2]
[329282243,1718214634499,-711.32,0.00016438,2]
[329282245,1718214634510,-500.0,0.00016438,2]
[329282247,1718214634520,-276.16,0.00016438,2]
[329282248,1718214634532,-500.0,0.00016438,2]
[329282250,1718214634544,-500.0,0.00016438,2]
[329282252,1718214634555,-638.9216037,0.00016438,2]
[329282255,1718214634568,-500.0,0.00016438,2]
[329282256,1718214634580,-500.0,0.00016438,2]
[329282258,1718214634591,-500.0,0.00016438,2]
[329282260,1718214634603,-518.49,0.00016438,2]
[329282262,1718214634613,-500.0,0.00016438,2]
[329282264,1718214634624,-500.0,0.00016438,2]
[329282266,1718214634635,-735.45,0.00016438,2]
[329282268,1718214634650,-500.0,0.00016438,2]
[329282271,1718214634663,-500.0,0.00016438,2]
[329282272,1718214634674,-957.28,0.00016438,2]
[329282274,1718214634687,-500.0,0.00016438,2]
[329282276,1718214634698,-500.0,0.00016438,2]
[329282278,1718214634709,-500.0,0.00016438,2]
[329282280,1718214634721,-350.79465647,0.00016438,2]
[329282585,1718214639502,-149.20534353,0.00016438,2]
[329282587,1718214639514,-500.0,0.00016438,2]
[329282588,1718214639526,-500.0,0.00016438,2]
[329282590,1718214639538,-389.53664177,0.00016438,2]
[329282593,1718214639551,-110.46335823,0.00016438,2]
[329282595,1718214639563,-500.0,0.00016438,2]
[329282597,1718214639574,-500.0,0.00016438,2]
[329282611,1718214639735,-500.0,0.00016438,2]
[329282613,1718214639748,-98.12840709,0.00016438,2]
[329282615,1718214639769,-255.3922851,0.00016438,2]
[329282616,1718214639780,-859.83,0.00016438,2]
[329282618,1718214639792,-144.19317467,0.00016438,2]
[329282621,1718214639813,-1872.05682533,0.00016438,2]
[329282623,1718214639825,-500.0,0.00016438,2]
[329282625,1718214639836,-892.11,0.00016438,2]
[329282626,1718214639847,-576.53,0.00016438,2]
[329282628,1718214639859,-2624.68,0.00016438,2]
[329282630,1718214639875,-500.0,0.00016438,2]
[329282632,1718214639887,-1534.59,0.00016438,2]
[329282634,1718214639899,-708.14,0.00016438,2]
[329282636,1718214639910,-902.97,0.00016438,2]
[329282637,1718214639922,-500.0,0.00016438,2]
[329282639,1718214639934,-500.0,0.00016438,2]
[329282642,1718214639946,-6102.19,0.00016438,2]
[329282643,1718214639958,-500.0,0.00016438,2]
[329282645,1718214639970,-500.0,0.00016438,2]
[329282648,1718214639983,-500.0,0.00016438,2]
[329282650,1718214639993,-500.0,0.00016438,2]
[329282652,1718214640008,-500.0,0.00016438,2]
[329282654,1718214640020,-500.0,0.00016438,2]
[329282656,1718214640031,-500.0,0.00016438,2]
[329282658,1718214640047,-500.0,0.00016438,2]
[329282660,1718214640062,-5910.41,0.00016438,2]
[329282662,1718214640077,-500.0,0.00016438,2]
[329282664,1718214640088,-500.0,0.00016438,2]
[329282666,1718214640099,-500.0,0.00016438,2]
[329282668,1718214640111,-500.0,0.00016438,2]
[329282670,1718214640122,-7011.27,0.00016438,2]
[329282672,1718214640133,-500.0,0.00016438,2]
[329282674,1718214640145,-530.28,0.00016438,2]
[329282676,1718214640156,-383.45358854,0.00016438,2]
[329282678,1718214640173,-500.0,0.00016438,2]
[329282680,1718214640184,-1809.54,0.00016438,2]
[329282682,1718214640213,-500.0,0.00016438,2]
[329282685,1718214640260,-3262.64,0.00016438,2]
[329282687,1718214640278,-500.0,0.00016438,2]
[329282689,1718214640293,-500.0,0.00016438,2]
[329282691,1718214640314,-553.81,0.00016438,2]
[329282693,1718214640327,-852.76,0.00016438,2]
[329282695,1718214640345,-500.0,0.00016438,2]
[329282698,1718214640381,-500.0,0.00016438,2]
[329282699,1718214640394,-500.0,0.00016438,2]
[329282701,1718214640418,-5779.45,0.00016438,2]
[329282703,1718214640429,-500.0,0.00016438,2]
[329282704,1718214640441,-500.0,0.00016438,2]
[329282706,1718214640464,-706.57,0.00016438,2]
[329282708,1718214640479,-500.0,0.00016438,2]
[329282710,1718214640518,-500.0,0.00016438,2]
[329282712,1718214640537,-500.0,0.00016438,2]
[329282715,1718214640564,-500.0,0.00016438,2]
[329282717,1718214640593,-684.79,0.00016438,2]
[329282718,1718214640605,-531.41,0.00016438,2]
[329282720,1718214640625,-500.0,0.00016438,2]
[329282722,1718214640638,-1017.72,0.00016438,2]
[329282724,1718214640653,-500.0,0.00016438,2]
[329282726,1718214640667,-500.0,0.00016438,2]
[329282728,1718214640679,-500.0,0.00016438,2]
[329282730,1718214640696,-500.0,0.00016438,2]
[329282732,1718214640708,-500.0,0.00016438,2]
[329282734,1718214640731,-1667.53,0.00016438,2]
[329282736,1718214640760,-500.0,0.00016438,2]
[329282739,1718214640773,-500.0,0.00016438,2]
[329282740,1718214640785,-500.0,0.00016438,2]
[329282743,1718214640798,-500.0,0.00016438,2]
[329282744,1718214640811,-500.0,0.00016438,2]
[329282747,1718214640827,-500.0,0.00016438,2]
[329282749,1718214640839,-500.0,0.00016438,2]
[329282751,1718214640853,-500.0,0.00016438,2]
[329282753,1718214640864,-1461.61,0.00016438,2]
[329282755,1718214640876,-500.0,0.00016438,2]
[329282757,1718214640887,-500.0,0.00016438,2]
[329282759,1718214640898,-500.0,0.00016438,2]
[329282761,1718214640910,-500.0,0.00016438,2]
[329282763,1718214640921,-417.96691704,0.00016438,2]
[329282765,1718214640933,-500.0,0.00016711,2]
[329282767,1718214640945,-500.0,0.00016711,2]
[329282769,1718214640956,-500.0,0.00016711,2]
[329282771,1718214640969,-500.0,0.00016711,2]
[329282773,1718214640982,-19916.95296998,0.00016712,15]
[329282775,1718214640996,-500.0,0.00016712,2]
[329282777,1718214641009,-443.85212821,0.00016712,2]
[329282779,1718214641022,-500.0,0.00016712,2]
[329282781,1718214641034,-500.0,0.00016712,2]
[329282783,1718214641046,-500.0,0.00016712,2]
[329282785,1718214641061,-500.0,0.00016712,2]
[329282786,1718214641072,-500.0,0.00016712,2]
[329282788,1718214641083,-500.0,0.00016712,2]
[329282790,1718214641094,-500.0,0.00016712,2]
[329282792,1718214641108,-500.0,0.00016712,2]
[329282794,1718214641119,-500.0,0.00016712,2]
[329282796,1718214641130,-500.0,0.00016712,2]
[329282798,1718214641141,-500.0,0.00016712,2]
[329282800,1718214641151,-500.0,0.00016712,2]
[329282802,1718214641164,-500.0,0.00016712,2]
[329282804,1718214641175,-500.0,0.00016712,2]
[329282807,1718214641186,-500.0,0.00016712,2]
[329282808,1718214641197,-500.0,0.00016712,2]
[329282811,1718214641209,-500.0,0.00016712,2]
[329282813,1718214641223,-500.0,0.00016712,4]
[329282815,1718214641235,-500.0,0.00016712,2]
[329282817,1718214641248,-500.0,0.00016712,2]
[329282818,1718214641260,-500.0,0.00016712,2]
[329282821,1718214641284,-711.32,0.00016712,2]
[329282823,1718214641297,-500.0,0.00016712,2]
[329282825,1718214641311,-183.45240142,0.00016712,2]
[329282827,1718214641325,-500.0,0.00016712,2]
[329282829,1718214641342,-541.07968919,0.00016712,2]
[329282831,1718214641357,-518.49,0.00016712,2]
[329282833,1718214641371,-500.0,0.00016712,2]
[329282835,1718214641383,-500.0,0.00016712,2]
[329282837,1718214641396,-735.45,0.00016712,2]
[329282839,1718214641408,-500.0,0.00016712,2]
[329282841,1718214641422,-500.0,0.00016712,2]